fUST/lending_fUST_20240324
["ID","MTS","AMOUNT","RATE_DAILY","PERIOD"]
[320287961,1711239048269,-500.0,0.00025205,2]
[320287962,1711239048279,-500.0,0.00025205,2]
[320287963,1711239048288,-500.0,0.00025205,2]
[320287964,1711239048301,-237.78144707,0.00025205,2]
[320287965,1711239048312,-532.8710426,0.00025205,2]
[320287966,1711239048323,-500.0,0.00025205,2]
[320287967,1711239048334,-387.52,0.00025205,2]
[320287968,1711239048343,-500.0,0.00025205,2]
[320287969,1711239048354,-561.98396972,0.00025205,2]
[320287970,1711239048364,-475.22547882,0.00025205,2]
[320287971,1711239048373,-731.57,0.00025205,2]
[320287972,1711239048382,-500.0,0.00025205,2]
[320287973,1711239048391,-1033.41,0.00025205,2]
[320287974,1711239048400,-500.0,0.00025205,2]
[320287975,1711239048409,-1221.42,0.00025205,2]
[320287976,1711239048418,-500.0,0.00025205,2]
[320287977,1711239048426,-532.37070528,0.00025205,2]
[320287978,1711239048436,-500.0,0.00025205,2]
[320287979,1711239048444,-500.0,0.00025205,2]
[320287980,1711239048453,-1222.12,0.00025205,2]
[320287981,1711239048463,-500.0,0.00025205,2]
[320287982,1711239048472,-500.0,0.00025205,2]
[320287983,1711239048481,-1322.34,0.00025205,2]
[320287984,1711239048490,-500.0,0.00025205,2]
[320287985,1711239048499,-500.0,0.00025205,2]
[320287986,1711239048508,-1090.33,0.00025205,2]
[320287987,1711239048517,-500.0,0.00025205,2]
[320287988,1711239048526,-500.0,0.00025205,2]
[320287989,1711239048535,-822.7,0.00025205,2]
[320287990,1711239048544,-500.0,0.00025205,2]
[320287991,1711239048553,-500.0,0.00025205,2]
[320287992,1711239048562,-500.0,0.00025205,2]
[320287993,1711239048571,-500.0,0.00025205,2]
[320287994,1711239048580,-500.0,0.00025205,2]
[320287995,1711239048589,-1647.78,0.00025205,2]
[320287996,1711239048598,-502.73071211,0.00025205,2]
[320287997,1711239048607,-500.0,0.00025205,2]
[320287998,1711239048616,-890.77,0.00025205,2]
[320287999,1711239048625,-500.0,0.00025205,2]
[320288000,1711239048635,-517.07,0.00025205,2]
[320288001,1711239048644,-500.0,0.00025205,2]
[320288002,1711239048653,-500.0,0.00025205,2]
[320288003,1711239048662,-500.0,0.00025205,2]
[320288004,1711239048671,-387.95,0.00025205,2]
[320288005,1711239048680,-12410.47,0.00025205,2]
[320288006,1711239048689,-500.0,0.00025205,2]
[320288007,1711239048698,-500.0,0.00025205,2]
[320288008,1711239048707,-1369.36,0.00025205,2]
[320288009,1711239048716,-334.84,0.00025205,2]
[320288010,1711239048725,-5247.89,0.00025205,2]
[320288011,1711239048734,-1262.39,0.00025205,2]
[320288012,1711239048743,-500.0,0.00025205,2]
[320288013,1711239048754,-501.0746176,0.00025205,2]
[320288014,1711239048763,-500.0,0.00025205,2]
[320288015,1711239048772,-13530.52,0.00025205,2]
[320288016,1711239048781,-1120.88,0.00025205,2]
[320288017,1711239048790,-500.0,0.00025205,2]
[320288018,1711239048801,-500.0,0.00025205,2]
[320288019,1711239048810,-1325.13,0.00025205,2]
[320288020,1711239048819,-821.03,0.00025205,2]
[320288021,1711239048829,-500.0,0.00025205,2]
[320288022,1711239048839,-500.0,0.00025205,2]
[320288023,1711239048848,-500.0,0.00025205,2]
[320288024,1711239048858,-13695.69,0.00025205,2]
[320288025,1711239048867,-500.0,0.00025205,2]
[320288026,1711239048876,-2661.62,0.00025205,2]
[320288027,1711239048885,-9639.72,0.00025205,2]
[320288028,1711239048894,-500.0,0.00025205,2]
[320288029,1711239048902,-500.0,0.00025205,2]
[320288030,1711239048913,-500.0,0.00025205,2]
[320288031,1711239048922,-849.77,0.00025205,2]
[320288032,1711239048931,-2826.03,0.00025205,2]
[320288033,1711239048941,-500.0,0.00025205,2]
[320288034,1711239048950,-1370.35,0.00025205,2]
[320288035,1711239048959,-503.57126688,0.00025205,2]
[320288036,1711239048969,-575.87,0.00025205,2]
[320288037,1711239048978,-2589.23,0.00025205,2]
[320288038,1711239048986,-916.64,0.00025205,2]
[320288039,1711239048995,-3762.23,0.00025205,2]
[320288040,1711239049005,-3407.42,0.00025205,2]
[320288041,1711239049014,-500.0,0.00025205,2]
[320288042,1711239049023,-1151.65,0.00025205,2]
[320288043,1711239049032,-500.0,0.00025205,2]
[320288044,1711239049041,-500.0,0.00025205,2]
[320288045,1711239049051,-836.16,0.00025205,2]
[320288046,1711239049060,-1032.67,0.00025205,2]
[320288047,1711239049069,-166.666666,0.00025235,2]
[320288048,1711239049078,-151.81010872,0.00025278,2]
[320288049,1711239049087,-250.0,0.00025299,49]
[320288050,1711239049096,-346.17911059,0.00025462,2]
[320288051,1711239049105,-500.0,0.00025479,2]
[320288052,1711239049114,-500.0,0.00025479,2]
[320288053,1711239049124,-408.19260193,0.00025479,2]
[320288054,1711239049133,-513.61,0.00025479,2]
[320288055,1711239049143,-500.0,0.00025479,2]
[320288056,1711239049154,-500.0,0.00025479,2]
[320288057,1711239049165,-500.0,0.00025479,2]
[320288058,1711239049175,-500.0,0.00025479,2]
[320288059,1711239049184,-731.57,0.00025479,2]
[320288060,1711239049193,-500.0,0.00025479,2]
[320288061,1711239049202,-1033.41,0.00025479,2]
[320288062,1711239049211,-500.0,0.00025479,2]
[320288063,1711239049220,-307.63138494,0.00025479,2]
[320288064,1711239049229,-1221.42,0.00025479,2]
[320288065,1711239049239,-500.0,0.00025479,2]
[320288066,1711239049248,-500.0,0.00025479,2]
[320288067,1711239049257,-1222.12,0.00025479,2]
[320288068,1711239049266,-152.20531309,0.00025479,2]
[320288069,1711239049276,-1322.34,0.00025479,2]
[320288070,1711239049285,-500.0,0.00025479,2]
[320288071,1711239049295,-500.0,0.00025479,2]
[320288072,1711239049304,-1090.33,0.00025479,2]
[320288073,1711239049313,-500.0,0.00025479,2]
[320288074,1711239049322,-822.7,0.00025479,2]
[320288075,1711239049331,-500.0,0.00025479,2]
[320288076,1711239049341,-500.0,0.00025479,2]
[320288077,1711239049351,-500.0,0.00025479,2]
[320288078,1711239049361,-500.0,0.00025479,2]
[320288079,1711239049373,-1647.78,0.00025479,2]
[320288080,1711239049385,-528.93049782,0.00025479,2]
[320288081,1711239049394,-890.77,0.00025479,2]
[320288082,1711239049404,-500.0,0.00025479,2]
[320288083,1711239049415,-517.07,0.00025479,2]
[320288084,1711239049424,-500.0,0.00025479,2]
[320288085,1711239049434,-500.0,0.00025479,2]
[320288086,1711239049445,-500.0,0.00025479,2]
[320288087,1711239049455,-12410.47,0.00025479,2]
[320288088,1711239049465,-500.0,0.00025479,2]
[320288089,1711239049474,-500.0,0.00025479,2]
[320288090,1711239049483,-1369.36,0.00025479,2]
[320288091,1711239049492,-5247.89,0.00025479,2]
[320288092,1711239049501,-1262.39,0.00025479,2]
[320288093,1711239049510,-500.0,0.00025479,2]
[320288094,1711239049616,-500.0,0.00025479,2]
[320288095,1711239049626,-13530.52,0.00025479,2]
[320288096,1711239049635,-1120.88,0.00025479,2]
[320288097,1711239049645,-500.0,0.00025479,2]
[320288098,1711239049655,-606.47708684,0.00025479,2]
[320288099,1711239049665,-1325.13,0.00025479,2]
[320288100,1711239049676,-821.03,0.00025479,2]
[320288101,1711239049686,-500.0,0.00025479,2]
[320288102,1711239049697,-500.0,0.00025479,2]
[320288103,1711239049707,-500.0,0.00025479,2]
[320288104,1711239049717,-13695.69,0.00025479,2]
[320288105,1711239049728,-500.0,0.00025479,2]
[320288106,1711239049737,-2661.62,0.00025479,2]
[320288107,1711239049753,-9639.72,0.00025479,2]
[320288108,1711239049762,-500.0,0.00025479,2]
[320288109,1711239049771,-500.0,0.00025479,2]
[320288110,1711239049780,-500.0,0.00025479,2]
[320288111,1711239049790,-849.77,0.00025479,2]
[320288112,1711239049801,-2826.03,0.00025479,2]
[320288113,1711239049811,-500.0,0.00025479,2]
[320288114,1711239049821,-1370.35,0.00025479,2]
[320288115,1711239049831,-575.87,0.00025479,2]
[320288116,1711239049841,-2589.23,0.00025479,2]
[320288117,1711239049850,-916.64,0.00025479,2]
[320288118,1711239049859,-3762.23,0.00025479,2]
[320288119,1711239049869,-3407.42,0.00025479,2]
[320288120,1711239049878,-500.0,0.00025479,2]
[320288121,1711239049887,-1151.65,0.00025479,2]
[320288122,1711239049896,-500.0,0.00025479,2]
[320288123,1711239049905,-624.81136653,0.00025479,2]
[320288124,1711239049914,-836.16,0.00025479,2]
[320288125,1711239049924,-1032.67,0.00025479,2]
[320288126,1711239049933,-150.93962415,0.00025564,2]
[320288127,1711239049942,-735.2862035,0.0002561,2]
[320288128,1711239049952,-500.0,0.00025753,2]
[320288129,1711239049960,-500.0,0.00025753,2]
[320288130,1711239049969,-500.0,0.00025753,2]
[320288131,1711239049979,-187.4078126,0.00025753,2]
[320288132,1711239049988,-500.0,0.00025753,2]
[320288133,1711239049997,-731.57,0.00025753,2]
[320288134,1711239050007,-359.81018755,0.00025753,2]
[320288135,1711239050016,-1033.41,0.00025753,2]
[320288136,1711239050025,-500.0,0.00025753,2]
[320288137,1711239050035,-1221.42,0.00025753,2]
[320288138,1711239050046,-500.0,0.00025753,2]
[320288139,1711239050055,-1222.12,0.00025753,2]
[320288140,1711239050064,-663.88870934,0.00025753,2]
[320288141,1711239050154,-658.45129066,0.00025753,2]
[320288142,1711239050163,-500.0,0.00025753,2]
[320288143,1711239050173,-451.87910595,0.00025753,2]
[320288144,1711239050182,-1090.33,0.00025753,2]
[320288145,1711239050192,-500.0,0.00025753,2]
[320288146,1711239050201,-822.7,0.00025753,2]
[320288147,1711239050210,-500.0,0.00025753,2]
[320288148,1711239050219,-500.0,0.00025753,2]
[320288149,1711239050228,-500.0,0.00025753,2]
[320288150,1711239050237,-1647.78,0.00025753,2]
[320288151,1711239050247,-890.77,0.00025753,2]
[320288152,1711239050256,-500.0,0.00025753,2]
[320288153,1711239050265,-517.07,0.00025753,2]
[320288154,1711239050274,-500.0,0.00025753,2]
[320288155,1711239050286,-500.0,0.00025753,2]
[320288156,1711239050296,-500.0,0.00025753,2]
[320288157,1711239050304,-12410.47,0.00025753,2]
[320288158,1711239050314,-500.0,0.00025753,2]
[320288159,1711239050323,-1369.36,0.00025753,2]
[320288160,1711239050332,-1270.25960341,0.00025753,2]
[320288161,1711239050345,-3977.63039659,0.00025753,2]
[320288162,1711239050354,-1262.39,0.00025753,2]
[320288163,1711239050363,-500.0,0.00025753,2]
[320288164,1711239050372,-646.9,0.00025753,2]
[320288165,1711239050381,-13530.52,0.00025753,2]
[320288166,1711239050390,-1120.88,0.00025753,2]
[320288167,1711239050399,-500.88893564,0.00025753,2]
[320288168,1711239050408,-132.17018332,0.00025753,2]
[320288228,1711240232656,-325.93484737,0.0002341,2]
[320288230,1711240232665,-53.53847222,0.0002341,2]
[320288232,1711240232677,-276.98215575,0.0002341,2]
[320288275,1711240238625,-589.99644685,0.0002341,2]
[320288277,1711240238634,-154.95351395,0.00023411,2]
[320288279,1711240238644,-181.320783,0.00023451,2]
[320288281,1711240238653,-334.6398069,0.00023637,2]
[320288283,1711240238661,-265.13510639,0.0002372,2]
[320288346,1711240243787,-0.18589178,0.0002372,2]
[320288347,1711240243822,-69.31880873,0.0002372,2]
[320288348,1711240243832,-334.6398069,0.00023735,2]
[320288349,1711240243842,-303.87196342,0.00024272,2]
[320288350,1711240243853,-303.87196342,0.00024459,2]
[320288351,1711240243862,-156.0338675,0.00024474,2]
[320288352,1711240243871,-2509.19216706,0.000245,7]
[320288353,1711240243880,-589.21957812,0.00024529,2]
[320288355,1711240243889,-589.21957809,0.00024536,2]
[320288357,1711240243899,-589.21957809,0.00024543,2]
[320288359,1711240243908,-589.21957809,0.0002455,2]
[320288361,1711240243918,-1380.57420865,0.00024555,2]
[320288363,1711240243927,-168.73788981,0.00024556,2]
[320288365,1711240243936,-74650.9988139,0.00024557,2]
[320288366,1711240243946,-589.21957809,0.00024557,2]
[320288367,1711240243955,-303.87196342,0.00024629,2]
[320288368,1711240243965,-322.38339831,0.00024655,2]
[320288369,1711240243974,-1065.93533135,0.00024656,2]
[320288370,1711240243984,-435.34462987,0.00024656,2]
[320288371,1711240243994,-500.0,0.00024657,2]
[320288372,1711240244003,-500.0,0.00024657,2]
[320288373,1711240244012,-500.0,0.00024657,2]
[320288374,1711240244022,-500.0,0.00024657,2]
[320288375,1711240244032,-500.0,0.00024657,2]
[320288376,1711240244041,-500.0,0.00024657,2]
[320288377,1711240244051,-219.92392789,0.00024657,2]
[320288378,1711240244061,-500.0,0.00024657,2]
[320288379,1711240244071,-500.0,0.00024657,2]
[320288380,1711240244081,-500.0,0.00024657,2]
[320288381,1711240244090,-500.0,0.00024657,2]
[320288382,1711240244099,-500.0,0.00024657,2]
[320288383,1711240244110,-500.0,0.00024657,2]
[320288384,1711240244121,-500.0,0.00024657,2]
[320288385,1711240244130,-500.0,0.00024657,2]
[320288386,1711240244139,-500.0,0.00024657,2]
[320288387,1711240244149,-535.19,0.00024657,2]
[320288388,1711240244160,-1029.52,0.00024657,2]
[320288389,1711240244169,-500.0,0.00024657,2]
[320288390,1711240244178,-500.0,0.00024657,2]
[320288391,1711240244187,-500.0,0.00024657,2]
[320288392,1711240244196,-579.16,0.00024657,2]
[320288393,1711240244206,-818.12,0.00024657,2]
[320288394,1711240244215,-510.02656391,0.00024657,2]
[320288395,1711240244224,-966.96,0.00024657,2]
[320288396,1711240244233,-500.0,0.00024657,2]
[320288397,1711240244242,-500.0,0.00024657,2]
[320288398,1711240244251,-500.0,0.00024657,2]
[320288399,1711240244260,-500.0,0.00024657,2]
[320288400,1711240244269,-500.0,0.00024657,2]
[320288401,1711240244278,-500.0,0.00024657,2]
[320288402,1711240244287,-967.51,0.00024657,2]
[320288403,1711240244296,-1046.85,0.00024657,2]
[320288404,1711240244305,-529.861254,0.00024657,2]
[320288405,1711240244314,-500.0,0.00024657,2]
[320288406,1711240244323,-863.18,0.00024657,2]
[320288407,1711240244332,-500.0,0.00024657,2]
[320288408,1711240244342,-651.3,0.00024657,2]
[320288409,1711240244350,-500.0,0.00024657,2]
[320288410,1711240244360,-500.0,0.00024657,2]
[320288411,1711240244370,-860.55,0.00024657,2]
[320288412,1711240244379,-500.0,0.00024657,2]
[320288413,1711240244389,-500.0,0.00024657,2]
[320288414,1711240244397,-500.0,0.00024657,2]
[320288415,1711240244407,-2839.51,0.00024657,2]
[320288416,1711240244416,-1304.5,0.00024657,2]
[320288417,1711240244425,-708.14,0.00024657,2]
[320288418,1711240244435,-959.7,0.00024657,2]
[320288419,1711240244444,-500.0,0.00024657,2]
[320288420,1711240244453,-2157.69,0.00024657,2]
[320288421,1711240244463,-3135.19,0.00024657,2]
[320288422,1711240244472,-500.0,0.00024657,2]
[320288423,1711240244481,-481.1,0.00024657,2]
[320288424,1711240244490,-705.2,0.00024657,2]
[320288425,1711240244499,-696.8,0.00024657,2]
[320288426,1711240244509,-1141.96,0.00024657,2]
[320288427,1711240244518,-500.0,0.00024657,2]
[320288428,1711240244527,-500.0,0.00024657,2]
[320288429,1711240244537,-500.0,0.00024657,2]
[320288430,1711240244546,-9824.95,0.00024657,2]
[320288431,1711240244555,-500.0,0.00024657,2]
[320288432,1711240244564,-4154.58,0.00024657,2]
[320288433,1711240244573,-999.39,0.00024657,2]
[320288434,1711240244582,-1084.08,0.00024657,2]
[320288435,1711240244592,-887.37,0.00024657,2]
[320288436,1711240244601,-500.0,0.00024657,2]
[320288437,1711240244611,-1098.77,0.00024657,2]
[320288438,1711240244620,-684.19,0.00024657,2]
[320288439,1711240244630,-500.0,0.00024657,2]
[320288440,1711240244639,-500.0,0.00024657,2]
[320288441,1711240244648,-11413.07,0.00024657,2]
[320288442,1711240244658,-500.0,0.00024657,2]
[320288443,1711240244667,-500.0,0.00024657,2]
[320288444,1711240244676,-2218.02,0.00024657,2]
[320288445,1711240244685,-500.0,0.00024657,2]
[320288446,1711240244694,-2355.02,0.00024657,2]
[320288447,1711240244704,-10711.66,0.00024657,2]
[320288448,1711240244713,-8033.1,0.00024657,2]
[320288449,1711240244722,-500.0,0.00024657,2]
[320288450,1711240244732,-763.87,0.00024657,2]
[320288451,1711240244741,-166.666666,0.00024658,2]
[320288452,1711240244750,-303.87196342,0.0002471,2]
[320288453,1711240244759,-150.0,0.000248,30]
[320288454,1711240244768,-27543.30214073,0.00024931,3]
[320288455,1711240244778,-500.0,0.00024931,2]
[320288456,1711240244787,-500.0,0.00024931,2]
[320288457,1711240244796,-500.0,0.00024931,2]
[320288458,1711240244805,-500.0,0.00024931,2]
[320288459,1711240244814,-535.19,0.00024931,2]
[320288460,1711240244824,-1029.52,0.00024931,2]
[320288461,1711240244833,-500.0,0.00024931,2]
[320288462,1711240244842,-500.0,0.00024931,2]
[320288463,1711240244851,-579.16,0.00024931,2]
[320288464,1711240244861,-818.12,0.00024931,2]
[320288465,1711240244871,-966.96,0.00024931,2]
[320288466,1711240244880,-500.0,0.00024931,2]
[320288467,1711240244890,-500.0,0.00024931,2]
[320288468,1711240244899,-500.0,0.00024931,2]
[320288469,1711240244908,-967.51,0.00024931,2]
[320288470,1711240244917,-1046.85,0.00024931,2]
[320288471,1711240244926,-404.03,0.00024931,2]
[320288472,1711240244936,-863.18,0.00024931,2]
[320288473,1711240244946,-444.47022136,0.00024931,2]
[320288474,1711240244956,-651.3,0.00024931,2]
[320288475,1711240244966,-500.0,0.00024931,2]
[320288476,1711240244975,-500.0,0.00024931,2]
[320288477,1711240244985,-860.55,0.00024931,2]
[320288478,1711240244995,-500.0,0.00024931,2]
[320288479,1711240245004,-500.0,0.00024931,2]
[320288480,1711240245013,-500.0,0.00024931,2]
[320288481,1711240245023,-2839.51,0.00024931,2]
[320288482,1711240245032,-1304.5,0.00024931,2]
[320288483,1711240245041,-708.14,0.00024931,2]
[320288484,1711240245051,-959.7,0.00024931,2]
[320288485,1711240245061,-500.0,0.00024931,2]
[320288486,1711240245070,-2157.69,0.00024931,2]
[320288487,1711240245080,-3135.19,0.00024931,2]
[320288488,1711240245090,-705.2,0.00024931,2]
[320288489,1711240245099,-696.8,0.00024931,2]
[320288490,1711240245110,-1141.96,0.00024931,2]
[320288491,1711240245120,-500.0,0.00024931,2]
[320288492,1711240245133,-500.0,0.00024931,2]
[320288493,1711240245142,-9824.95,0.00024931,2]
[320288494,1711240245151,-500.0,0.00024931,2]
[320288495,1711240245160,-4154.58,0.00024931,2]
[320288496,1711240245169,-999.39,0.00024931,2]
[320288497,1711240245178,-1084.08,0.00024931,2]
[320288498,1711240245187,-887.37,0.00024931,2]
[320288499,1711240245195,-500.0,0.00024931,2]
[320288500,1711240245206,-1098.77,0.00024931,2]
[320288501,1711240245215,-684.19,0.00024931,2]
[320288502,1711240245223,-500.0,0.00024931,2]
[320288503,1711240245232,-500.0,0.00024931,2]
[320288504,1711240245240,-7118.99949238,0.00024931,2]
[320288533,1711241195164,-325.93484737,0.00023295,2]
[320288534,1711241195186,-920.51707482,0.00023296,2]
[320288535,1711241195206,-975.53306499,0.000233,3]
[320288591,1711241432091,-325.93484737,0.00023226,2]
[320288594,1711241432102,-920.51707482,0.00023226,2]
[320288596,1711241432111,-189.031823,0.00023227,2]
[320288598,1711241432121,-15981.47702153,0.000233,2]
[320288600,1711241432131,-22.3949036,0.000233,3]
[320288602,1711241432140,-242.920478,0.00023695,2]
[320288604,1711241432149,-484.274599,0.00023695,2]
[320288606,1711241432157,-172.955214,0.00023695,2]
[320288608,1711241432167,-173.514628,0.00023695,2]
[320288609,1711241432176,-238.57055994,0.0002372,2]
[320288611,1711241432185,-155.0,0.0002372,2]
[320288614,1711241432194,-242.920478,0.00023991,2]
[320288615,1711241432204,-484.274599,0.00023991,2]
[320288617,1711241432215,-325.90290554,0.00024258,2]
[320288619,1711241432226,-242.920478,0.00024287,2]
[320288622,1711241432235,-484.274599,0.00024287,2]
[320288624,1711241432245,-325.90290554,0.00024426,2]
[320288626,1711241432255,-17712.65358676,0.000245,7]
[320288627,1711241432264,-1206.54083902,0.00024557,2]
[320288629,1711241432274,-195.4017471,0.00024557,2]
[320288631,1711241432283,-242.920478,0.00024583,2]
[320288633,1711241432292,-484.274599,0.00024583,2]
[320288636,1711241432302,-1206.54083899,0.00024626,2]
[320288638,1711241432311,-155.81311355,0.00024655,2]
[320288640,1711241432321,-155.20132746,0.00024655,2]
[320288642,1711241432330,-263.90144812,0.00024655,7]
[320288644,1711241432339,-155.42448949,0.00024655,2]
[320288645,1711241432348,-294.88454091,0.00024655,2]
[320288648,1711241432358,-155.61779455,0.00024655,2]
[320288650,1711241432368,-573.75919571,0.00024655,2]
[320288651,1711241432378,-155.91462232,0.00024655,2]
[320288653,1711241432387,-304.8751182,0.00024655,2]
[320288655,1711241432396,-5349.82362477,0.00024656,2]
[320288657,1711241432406,-237.17228716,0.00024656,2]
[320288659,1711241432415,-384.97847442,0.00024656,2]
[320288661,1711241432424,-260.9833463,0.00024657,2]
[320288663,1711241432433,-500.0,0.00024657,2]
[320288665,1711241432443,-500.0,0.00024657,2]
[320288667,1711241432452,-788.84,0.00024657,2]
[320288669,1711241432461,-500.0,0.00024657,2]
[320288672,1711241432473,-500.0,0.00024657,2]
[320288674,1711241432483,-200.00000002,0.00024657,2]
[320288676,1711241432492,-500.0,0.00024657,2]
[320288677,1711241432501,-500.0,0.00024657,2]
[320288679,1711241432511,-943.72,0.00024657,2]
[320288682,1711241432521,-218.17282089,0.00024657,2]
[320288683,1711241432531,-530.9,0.00024657,2]
[320288686,1711241432541,-749.94,0.00024657,2]
[320288687,1711241432551,-886.38,0.00024657,2]
[320288689,1711241432564,-500.0,0.00024657,2]
[320288692,1711241432574,-500.0,0.00024657,2]
[320288694,1711241432583,-500.0,0.00024657,2]
[320288696,1711241432592,-886.88,0.00024657,2]
[320288698,1711241432603,-959.61,0.00024657,2]
[320288699,1711241432612,-791.24,0.00024657,2]
[320288701,1711241432621,-597.03,0.00024657,2]
[320288703,1711241432632,-500.0,0.00024657,2]
[320288705,1711241432641,-500.0,0.00024657,2]
[320288706,1711241432650,-500.0,0.00024657,2]
[320288708,1711241432659,-2125.6,0.00024657,2]
[320288709,1711241432668,-1195.79,0.00024657,2]
[320288710,1711241432677,-500.0,0.00024657,2]
[320288711,1711241432686,-2602.89,0.00024657,2]
[320288712,1711241432695,-649.13,0.00024657,2]
[320288714,1711241432705,-879.73,0.00024657,2]
[320288715,1711241432714,-500.0,0.00024657,2]
[320288717,1711241432724,-500.0,0.00024657,2]
[320288718,1711241432732,-1046.8,0.00024657,2]
[320288719,1711241432741,-1977.89,0.00024657,2]
[320288720,1711241432750,-2873.93,0.00024657,2]
[320288721,1711241432759,-646.43,0.00024657,2]
[320288722,1711241432768,-638.73,0.00024657,2]
[320288723,1711241432776,-500.0,0.00024657,2]
[320288724,1711241432785,-916.11,0.00024657,2]
[320288725,1711241432794,-9006.21,0.00024657,2]
[320288726,1711241432803,-813.42,0.00024657,2]
[320288727,1711241432812,-3808.36,0.00024657,2]
[320288728,1711241432821,-993.74,0.00024657,2]
[320288729,1711241432831,-500.0,0.00024657,2]
[320288730,1711241432839,-627.18,0.00024657,2]
[320288731,1711241432848,-500.0,0.00024657,2]
[320288732,1711241432857,-500.0,0.00024657,2]
[320288733,1711241432866,-1007.21,0.00024657,2]
[320288734,1711241432875,-500.0,0.00024657,2]
[320288735,1711241432885,-500.0,0.00024657,2]
[320288736,1711241432894,-2256.9,0.00024657,2]
[320288737,1711241432902,-7698.39,0.00024657,2]
[320288738,1711241432911,-581.06335654,0.00024657,2]
[320288739,1711241432920,-10265.34,0.00024657,2]
[320288740,1711241432929,-732.04,0.00024657,2]
[320288741,1711241432938,-500.0,0.00024657,2]
[320288742,1711241432946,-3245.00757816,0.00024657,2]
[320288761,1711241437906,-7395.89242184,0.00024657,2]
[320288762,1711241437917,-843.07,0.00024657,2]
[320288763,1711241437926,-622.08,0.00024657,2]
[320288764,1711241437935,-175.0,0.00024658,120]
[320288765,1711241437944,-166.666666,0.00024658,2]
[320288766,1711241437954,-325.90290554,0.00024669,2]
[320288767,1711241437964,-1206.54083899,0.00024694,2]
[320288768,1711241437973,-195.4017471,0.00024694,2]
[320288769,1711241437982,-500.0,0.00024753,7]
[320288770,1711241437992,-500.0,0.00024753,7]
[320288771,1711241438001,-500.0,0.00024753,7]
[320288772,1711241438010,-500.0,0.00024753,7]
[320288773,1711241438019,-500.0,0.00024753,7]
[320288774,1711241438028,-500.0,0.00024753,7]
[320288775,1711241438038,-500.0,0.00024753,7]
[320288776,1711241438047,-500.0,0.00024753,7]
[320288777,1711241438056,-500.0,0.00024753,7]
[320288778,1711241438066,-500.0,0.00024753,7]
[320288779,1711241438074,-500.0,0.00024753,7]
[320288780,1711241438083,-500.0,0.00024753,7]
[320288781,1711241438093,-500.0,0.00024753,7]
[320288782,1711241438103,-500.0,0.00024753,7]
[320288783,1711241438113,-207.75,0.00024753,7]
[320288784,1711241438122,-1206.54083899,0.00024763,2]
[320288785,1711241438132,-1206.54083899,0.00024831,2]
[320288786,1711241438146,-195.4017471,0.00024831,2]
[320288787,1711241438156,-172.955214,0.0002488,2]
[320288788,1711241438165,-242.920478,0.0002488,2]
[320288789,1711241438174,-484.274599,0.0002488,2]
[320288790,1711241438183,-154.99543318,0.0002493,2]
[320288791,1711241438192,-3223.86903271,0.00024931,3]
[320288822,1711241442974,-17433.60757284,0.00024931,3]
[320288823,1711241442984,-313.08414454,0.00024931,2]
[320288824,1711241442993,-19057.85294244,0.00024931,2]
[320288825,1711241443003,-500.0,0.00024931,2]
[320288826,1711241443012,-500.0,0.00024931,2]